Cogmind - Beta 10.2 @@@ ROGUE MODE // 2021.06.19 @ 22:33:09 Player: Sanctumkeeper Result: Destroyed by S-43 Plague with Heavy Machine Gun Performance ------------- Evolutions (8) 4000 Regions Visited (20) 4000 Robots Destroyed (121) 605 Value Destroyed (4729) 4729 Prototype IDs (13) 260 Alien Tech Used (0) 0 Bonus (2626) 2626 TOTAL SCORE: 16220 Bonus ------- High Alert Combat Kills 345 Follower Combat Kills 581 Entered Garrisons 400 Used RIF Installer 1000 Met Data Miner 300 Cogmind --------- Core Integrity 0/1450 Matter 294/300 Energy 99/100 System Corruption 0% Temperature Cool (0) Movement Core (50) Location -2/Research Parts ------- > --- POWER (2) -------- (None) > --- PROPULSION (5) --- (None) > --- UTILITY (14) ----- (None) > --- WEAPON (2) ------- (None) > --- INVENTORY (4) ---- Shock Bomb Launcher Improved Datajack Improved Plasma Cutter Peak State ------------ > --- POWER ------------ Light Antimatter Reactor Light Particle Reactor > --- PROPULSION ------- Biomechanical Wings Impulse Thruster Array > --- UTILITY ---------- Advanced Weight Redist. System Advanced Visual Processing Unit Advanced Signal Interpreter Improved System Shield > --- WEAPON ----------- Lance > --- INVENTORY -------- Shock Bomb Launcher Improved Datajack Improved Plasma Cutter [Rating: 58] Favorites ----------- Power Light Angular Momentum Engine Engine Light Angular Momentum Engine Power Core Light Nuclear Core Reactor Light Particle Reactor Propulsion Light Treads Treads Light Treads Leg Carbon-fiber Leg Flight Unit Biomechanical Wings Utility High-capacity Storage Unit Device Advanced Heat Sink Storage High-capacity Storage Unit Processor Improved Signal Interpreter Hackware Relay Coupler [NC] Protection Hardened Medium Armor Plating Weapon Heavy Assault Rifle Energy Gun Heavy EM Pulse Gun Energy Cannon EM Pulse Cannon Ballistic Gun Heavy Assault Rifle Launcher Shock Bomb Launcher Special Weapon Mining Laser Slashing Weapon Katana Piercing Weapon Lance Build | -11 -10 -10 -9 -8 -8 -8 -8 -8 -8 -6 -6 -6 -6 -5 -5 -4 -4 -4 -3 -2 ------- Run | Scr Mat Min Mat Mat Gar Mat Sto Gar Rec Fac Low Low Dat Pro Fac Fac Upp Upp Res Res Slots Evolved 16 | . . . 2 2 . . . . . 4 . . . . 2 2 . . 2 2 Power 1 | . . . . . . . . . . . . . . . . 1 . . . . Propulsion 3 | . . . 1 . . . . . . 1 . . . . . . . . . 1 Utility 12 | . . . 1 2 . . . . . 3 . . . . 2 1 . . 2 1 Weapon . | . . . . . . . . . . . . . . . . . . . . . Parts Attached 156 | 6 8 4 7 4 14 11 15 17 . 11 20 11 . 1 16 5 1 . 4 1 Power 23 | 1 . 2 1 1 1 2 1 4 . 1 2 1 . . 2 1 . . 2 1 Engine 16 | 1 . 2 1 . . 2 1 3 . 1 1 1 . . 2 . . . 1 . Core 4 | . . . . 1 1 . . 1 . . 1 . . . . . . . . . Reactor 3 | . . . . . . . . . . . . . . . . 1 . . 1 1 Propulsion 45 | 2 . . 4 1 6 3 3 8 . 2 6 3 . . 5 1 . . 1 . Treads 40 | 2 . . 4 1 6 3 3 8 . 2 6 3 . . 2 . . . . . Leg 1 | . . . . . . . . . . . . . . . 1 . . . . . Wheel . | . . . . . . . . . . . . . . . . . . . . . Hover . | . . . . . . . . . . . . . . . . . . . . . Flight 4 | . . . . . . . . . . . . . . . 2 1 . . 1 . Utility 47 | 1 4 . 2 2 2 2 5 1 . 7 6 3 . 1 6 3 1 . 1 . Device 21 | . . . . 1 2 2 2 1 . 4 4 1 . 1 1 1 . . 1 . Storage 10 | 1 4 . 2 . . . 1 . . . . . . . 2 . . . . . Processor 3 | . . . . . . . . . . 1 . . . . . 2 . . . . Hackware 6 | . . . . . . . 1 . . 1 . . . . 3 . 1 . . . Protection 7 | . . . . 1 . . 1 . . 1 2 2 . . . . . . . . Artifact . | . . . . . . . . . . . . . . . . . . . . . Weapon 41 | 2 4 2 . . 5 4 6 4 . 1 6 4 . . 3 . . . . . Energy Gun 7 | 1 . . . . . 1 2 1 . 1 . . . . 1 . . . . . Energy Cannon 3 | . . . . . . . . . . . 2 1 . . . . . . . . Ballistic Gun 22 | 1 3 2 . . 4 2 3 2 . . 3 2 . . . . . . . . Ballistic Cannon . | . . . . . . . . . . . . . . . . . . . . . Launcher 5 | . . . . . 1 1 1 1 . . 1 . . . . . . . . . Special Weapon 1 | . 1 . . . . . . . . . . . . . . . . . . . Impact Weapon . | . . . . . . . . . . . . . . . . . . . . . Slashing Weapon 2 | . . . . . . . . . . . . 1 . . 1 . . . . . Piercing Weapon 1 | . . . . . . . . . . . . . . . 1 . . . . . Special Melee Weapon . | . . . . . . . . . . . . . . . . . . . . . Unidentified Prototypes 4 | . . . . . . . 2 . . . . 1 . . . 1 . . . . Parts Lost 80 | . . . 1 1 12 7 6 8 . 2 20 10 . . 5 4 1 . 1 2 Power 13 | . . . . . 1 1 1 2 . . 2 2 . . 2 . . . 1 1 Propulsion 30 | . . . 1 1 6 3 1 2 . 1 8 4 . . 1 2 . . . . Utility 18 | . . . . . 2 1 1 1 . . 6 3 . . . 2 1 . . 1 Weapon 19 | . . . . . 3 2 3 3 . 1 4 1 . . 2 . . . . . Highest Loss Streak 10 | . . . 1 1 8 5 2 8 . 2 10 4 . . 3 3 1 . 1 3 Average Slot Usage (%) 84 | . 97 100 98 98 99 99 99 96 100 99 86 74 . . 19 39 28 26 34 3 Engine 6 | . 14 14 11 6 . 6 9 5 9 6 4 1 . . 1 . . . 1 . Core 1 | . . . . 2 9 2 . . . . 1 . . . . . . . . . Treads 21 | . 28 28 32 27 26 26 26 26 27 25 18 15 . . 2 . . . . . Device 7 | . . . . 7 16 17 9 6 9 8 11 13 . . 1 . . . 3 . Storage 22 | . 26 28 31 27 27 27 27 27 27 20 20 19 . . 1 4 . . . . Hackware 5 | . . . . . . . 7 9 9 12 13 6 . . 4 14 7 5 4 . Protection 1 | . . . . 9 1 . . 1 . 3 2 3 . . . . . . . . Energy Gun 1 | . 2 . . . . 1 7 . . 1 2 . . . . . . . . . Ballistic Gun 12 | . 25 28 22 18 16 15 10 13 18 10 5 5 . . . . . . . . Naked Turns 445 | . . . . . . . . . . . . 10 40 97 102 . . . . 196 Heaviest Build 109 | 9 55 61 93 97 96 97 101 98 95 105 109 103 . . 26 19 3 3 20 29 Greatest Support 83 | 40 40 40 63 63 63 63 63 63 60 80 83 69 3 3 56 29 8 8 35 35 Greatest Overweight (x) 34 | 1 1 1 1 1 2 1 1 2 1 1 34 32 . . 2 . . . . . Average Overweight (x) . | . . 1 . 1 1 1 1 1 1 1 1 1 . . . . . . . . Largest Inventory Capacity 26 | 6 18 18 26 26 26 26 26 26 26 26 26 26 4 4 10 10 4 4 4 4 Average Capacity 21 | 5 13 18 25 26 26 26 26 26 26 26 26 25 4 4 5 9 4 4 4 4 Most Carried 26 | 4 18 18 26 26 26 26 26 26 26 26 26 14 4 4 4 8 4 4 4 3 Average Carried 17 | 2 10 17 22 25 24 25 25 24 26 23 16 12 4 4 3 5 4 4 4 3 Final Capacity 26 | 6 18 18 26 26 26 26 26 26 26 26 26 4 4 4 10 4 4 4 4 4 Final Carried 26 | 4 18 18 26 26 26 26 26 26 26 26 12 4 4 4 3 4 4 4 4 3 Class Distribution -------------------- 37% | Hauler-Mutant 29% | Scavenger-Mutant 23% | Mutant 5% | Hauler-Skirmisher 3% | Hacker-Mutant Dominant Class ---------------- Mutant | -10/Materials Mutant | -10/Mines Hauler-Mutant | -9/Materials Hauler-Mutant | -8/Materials Scavenger-Mutant | -8/Garrison Scavenger-Mutant | -8/Materials Scavenger-Mutant | -8/Storage Scavenger-Mutant | -8/Garrison Scavenger-Mutant | -8/Recycling Scavenger-Mutant | -6/Factory Hauler-Mutant | -6/Lower Caves Hauler-Mutant | -6/Lower Caves Mutant | -6/Data Miner Mutant | -5/Proximity Caves Mutant | -5/Factory Hacker-Mutant | -4/Factory Mutant | -4/Upper Caves Mutant | -4/Upper Caves Scavenger-Mutant | -3/Research Mutant | -2/Research Resources | -11 -10 -10 -9 -8 -8 -8 -8 -8 -8 -6 -6 -6 -6 -5 -5 -4 -4 -4 -3 -2 ----------- Run | Scr Mat Min Mat Mat Gar Mat Sto Gar Rec Fac Low Low Dat Pro Fac Fac Upp Upp Res Res Matter Collected 3450 | 240 58 290 375 118 309 413 185 402 39 119 409 209 . 94 25 48 31 . 86 . Remotely . | . . . . . . . . . . . . . . . . . . . . . Salvage Created 5049 | . 134 310 899 279 473 747 743 321 . 321 316 203 . . 155 48 . . 100 . Parts 284 | . 13 29 55 14 36 35 41 19 . 11 11 3 . . 7 5 . . 5 . Haulers Intercepted 9 | . 1 . 3 . . 1 2 . . . . . . . 1 . . . 1 . Recyclers Shooed 5 | . . 1 2 . . 1 1 . . . . . . . . . . . . . Parts Field Recycled . | . . . . . . . . . . . . . . . . . . . . . Retrieved Matter . | . . . . . . . . . . . . . . . . . . . . . Parts Self-Destructed 32 | . . . . . . . . . . . 7 6 . 19 . . . . . . Prevented 1 | . . . . . . . . . . . 1 . . . . . . . . . Kills | -11 -10 -10 -9 -8 -8 -8 -8 -8 -8 -6 -6 -6 -6 -5 -5 -4 -4 -4 -3 -2 ------- Run | Scr Mat Min Mat Mat Gar Mat Sto Gar Rec Fac Low Low Dat Pro Fac Fac Upp Upp Res Res Combat Hostiles Destroyed 102 | . 4 13 13 6 18 11 11 8 . 5 9 3 . . 1 . . . . . Guns 87 | . 4 13 13 6 15 10 9 7 . 5 2 2 . . 1 . . . . . Cannons 3 | . . . . . . . . . . . 2 1 . . . . . . . . AOE 11 | . . . . . 3 1 2 1 . . 4 . . . . . . . . . Classes Destroyed 14 | . 3 1 3 1 1 1 1 . . . 1 1 . . . . . . 1 . Worker 3 | . . . 1 . . 1 1 . . . . . . . . . . . . . Builder 1 | . . . . . . . 1 . . . . . . . . . . . . . Hauler 9 | . 1 . 3 . . 1 2 . . . . . . . 1 . . . 1 . Recycler 3 | . . . 2 . . 1 . . . . . . . . . . . . . . Operator 1 | . . . . . . . . . . . . . . . . . . . 1 . Watcher 2 | . . . . . . 1 . . . . . . . . . 1 . . . . Swarmer 33 | . 3 9 . . 12 . . 3 . . 4 2 . . . . . . . . Grunt 43 | . 1 2 8 3 5 6 8 2 . 3 3 1 . . 1 . . . . . Brawler 4 | . . . 1 1 . 1 . . . 1 . . . . . . . . . . Duelist 1 | . . . . 1 . . . . . . . . . . . . . . . . Sentry 16 | . . 2 4 1 . 3 3 3 . . . . . . . . . . . . Hunter 3 | . . . . . 1 1 . . . 1 . . . . . . . . . . Samaritan 2 | . . . . . . . . . . . . 2 . . . . . . . . Thief 1 | . . . . . . . . . . . 1 . . . . . . . . . Savage 1 | . . . . . . . . . . . 1 . . . . . . . . . Best Kill Streak 7 | . 3 3 7 3 6 3 5 4 . 3 5 1 . . 1 1 . . 1 . Combat Bots Only 6 | . 3 3 5 3 6 2 3 4 . 3 5 1 . . 1 . . . . . Max Kills in Single Turn 4 | . 1 2 1 1 2 1 4 1 . 1 3 1 . . 1 1 . . 1 . Gunslinging . | . . . . . . . . . . . . . . . . . . . . . Exploded 3 | . . . . . 2 1 2 1 . . 3 . . . . . . . . . Melee . | . . . . . . . . . . . . . . . . . . . . . Uniques/NPCs Destroyed . | . . . . . . . . . . . . . . . . . . . . . Combat | -11 -10 -10 -9 -8 -8 -8 -8 -8 -8 -6 -6 -6 -6 -5 -5 -4 -4 -4 -3 -2 -------- Run | Scr Mat Min Mat Mat Gar Mat Sto Gar Rec Fac Low Low Dat Pro Fac Fac Upp Upp Res Res Damage Taken 13161 | . 54 426 341 214 1472 1140 756 1098 . 795 2097 1295 . 206 737 546 244 . 124 1616 Core 3618 | . 6 67 30 17 87 163 78 49 . 39 263 280 . 206 279 342 193 . 52 1467 Absorbed by Shields . | . . . . . . . . . . . . . . . . . . . . . Core Remaining (%) 64 | 100 . 70 92 . . . . . 28 . . . . 7 72 . . 53 96 . Volleys Fired 380 | . 26 32 45 12 41 57 28 41 . 25 45 20 . . 8 . . . . . Largest 2 | . 2 2 2 2 2 2 2 2 . 2 2 2 . . 1 . . . . . Hottest 100 | . 100 46 46 46 46 68 90 68 . 73 88 63 . . 63 . . . . . Shots Fired 677 | . 51 64 86 24 72 108 56 64 . 50 65 29 . . 8 . . . . . Gun 626 | . 50 64 86 24 65 102 56 59 . 50 35 27 . . 8 . . . . . Cannon 29 | . . . . . . . . . . . 27 2 . . . . . . . . Launcher 21 | . . . . . 7 6 . 5 . . 3 . . . . . . . . . Special 1 | . 1 . . . . . . . . . . . . . . . . . . . Kinetic 554 | . 47 64 86 24 65 88 22 55 . 49 27 27 . . . . . . . . Thermal 34 | . 4 . . . . . . . . . 22 . . . 8 . . . . . Explosive 3 | . . . . . . . . . . . 3 . . . . . . . . . Electromagnetic 86 | . . . . . 7 20 34 9 . 1 13 2 . . . . . . . . Robot Hit Streak 26 | . 12 26 12 11 10 15 18 9 . 7 26 15 . . 17 . . . . . Robot Miss Streak 5 | . 5 5 3 1 5 2 2 3 . 3 2 3 . . 1 . . . . . Penetration Max 1 | . . . . . . . . . . 1 . . . . . . . . . . Secondary Targets 13 | . . 1 . . 6 2 1 1 . 2 . . . . . . . . . . Max Gunslinging Chain 1 | . . 1 . . 1 1 1 1 . 1 . . . . . . . . . . Shots Hit Robots 502 | . 31 49 63 22 55 79 45 33 . 35 50 27 . . 6 2 . . 5 . Core Hits 256 | . 8 25 36 15 32 38 39 15 . 15 17 9 . . 3 2 . . 2 . Critical Hits 7 | . . 2 2 . . 1 1 . . . . . . . . . . . 1 . Critical Kills 4 | . . 1 2 . . 1 . . . . . . . . . . . . . . Critical Parts Destroyed 3 | . . 1 . . . . 1 . . . . . . . . . . . 1 . Melee Attacks 31 | . . . . . . . . . . . . 9 . . 1 14 . . 6 1 Impact . | . . . . . . . . . . . . . . . . . . . . . Slashing 10 | . . . . . . . . . . . . 9 . . 1 . . . . . Piercing 21 | . . . . . . . . . . . . . . . . 14 . . 6 1 Sneak Attacks 7 | . . . . . . . . . . . . 5 . . 1 . . . 1 . Combat Hostiles . | . . . . . . . . . . . . . . . . . . . . . Follow-up Attacks . | . . . . . . . . . . . . . . . . . . . . . Damage Inflicted 9440 | . 260 583 949 346 805 1330 958 763 . 597 1561 722 . . 177 75 . . 311 3 Guns 6683 | . 260 583 941 346 640 1211 641 577 . 597 561 225 . . 101 . . . . . Cannons 564 | . . . . . . . . . . . 542 22 . . . . . . . . Explosions 1230 | . . . . . 165 104 317 186 . . 458 . . . . . . . . . Melee 927 | . . . . . . . . . . . . 465 . . 76 75 . . 311 . Ramming 36 | . . . 8 . . 15 . . . . . 10 . . . . . . . 3 Kinetic 5718 | . 227 583 941 346 640 1011 181 530 . 581 453 225 . . . . . . . . Thermal 994 | . 33 . . . . . 317 57 . . 486 . . . 101 . . . . . Explosive 408 | . . . . . . . . . . . 408 . . . . . . . . . Electromagnetic 1357 | . . . . . 165 304 460 176 . 16 214 22 . . . . . . . . Impact . | . . . . . . . . . . . . . . . . . . . . . Slashing 541 | . . . . . . . . . . . . 465 . . 76 . . . . . Piercing 386 | . . . . . . . . . . . . . . . . 75 . . 311 . Highest Corruption 13 | . . . . . 2 2 3 3 3 . 13 13 13 13 . 3 3 3 1 . Average Corruption 6 | . . . . . 1 2 2 3 3 . 12 13 13 13 . 3 3 3 1 . Corruption Purged . | . . . . . . . . . . . . . . . . . . . . . Effects 178 | . . . . . 5 7 9 22 5 . 52 69 . 8 . . 1 . . . Message Errors 31 | . . . . . 2 2 4 3 . . 7 12 . 1 . . . . . . Matter Fused 41 | . . . . . . . 3 10 2 . 8 17 . 1 . . . . . . Heat Flow Errors 23 | . . . . . 1 . 2 2 2 . 7 9 . . . . . . . . Energy Discharges 16 | . . . . . . 3 . 2 1 . 6 4 . . . . . . . . Parts Rejected 2 | . . . . . . . . . . . 1 . . 1 . . . . . . Data Loss (minor) 19 | . . . . . 1 1 . 4 . . 4 7 . 1 . . 1 . . . Data Loss (major) 4 | . . . . . . . . . . . 2 2 . . . . . . . . Misfires 2 | . . . . . . . . . . . . 2 . . . . . . . . Alerts 3 | . . . . . . . . . . . 1 2 . . . . . . . . Misdirections 18 | . . . . . . . . . . . 4 10 . 4 . . . . . . Targeting Errors 15 | . . . . . 1 1 . 1 . . 8 4 . . . . . . . . Weapon Failures 4 | . . . . . . . . . . . 4 . . . . . . . . . Overload Shots . | . . . . . . . . . . . . . . . . . . . . . Overflow Damage 338 | . . . . . . . 42 . . . 26 270 . . . . . . . . Projectiles 15 | . . . . . . . . . . . 15 . . . . . . . . . Explosions 53 | . . . . . . . 42 . . . 11 . . . . . . . . . Melee 270 | . . . . . . . . . . . . 270 . . . . . . . . Knockbacks 1 | . . . . . . 1 . . . . . . . . . . . . . . Impact 1 | . . . . . . 1 . . . . . . . . . . . . . . Kinetic . | . . . . . . . . . . . . . . . . . . . . . Secondary . | . . . . . . . . . . . . . . . . . . . . . Self-Inflicted Damage 243 | . . . . . 49 10 59 16 . . 103 5 . . . . . . . 1 Shots 9 | . . . . . 3 1 1 2 . . 2 . . . . . . . . . Rammed 7 | . . . 1 . . 2 . . . . . 2 . . . . . . . 2 Targets Rammed 7 | . . . 1 . . 2 . . . . . 2 . . . . . . . 2 Kicked . | . . . . . . . . . . . . . . . . . . . . . Crushed . | . . . . . . . . . . . . . . . . . . . . . Highest Temperature 368 | . 40 16 2 3 56 . 181 339 95 . 368 163 . . 53 . . . . . Average Temperature 89 | . 16 3 1 2 15 . 94 202 51 . 135 67 . . 34 . . . . . Received Heat Transfer 3621 | . 12 90 162 63 333 459 297 522 . 126 717 294 . 30 342 21 . . 9 144 Effects 1 | . . . . . . . . . . . 1 . . . . . . . . . Shutdowns 1 | . . . . . . . . . . . 1 . . . . . . . . . Siege Activations . | . . . . . . . . . . . . . . . . . . . . . Robots Corrupted 1 | . . . . . . . . . . . 1 . . . . . . . . . Combat Hostiles 1 | . . . . . . . . . . . 1 . . . . . . . . . Parts Fried 5 | . . . . . 1 1 3 . . . . . . . . . . . . . Impact Corruptions . | . . . . . . . . . . . . . . . . . . . . . Robots Melted . | . . . . . . . . . . . . . . . . . . . . . Combat Hostiles . | . . . . . . . . . . . . . . . . . . . . . Parts Melted 3 | . . . . . . . . . . . 2 . . . 1 . . . . . Heat Transferred 1188 | . 75 . . . . . 150 25 . . 716 . . . 222 . . . . . Parts Sabotaged . | . . . . . . . . . . . . . . . . . . . . . Parts Stolen . | . . . . . . . . . . . . . . . . . . . . . Parts Stripped . | . . . . . . . . . . . . . . . . . . . . . Power Chain Reactions 3 | . . . . . . . 1 1 . . 1 . . . . . . . . . Missiles Intercepted . | . . . . . . . . . . . . . . . . . . . . . Alert | -11 -10 -10 -9 -8 -8 -8 -8 -8 -8 -6 -6 -6 -6 -5 -5 -4 -4 -4 -3 -2 ------- Run | Scr Mat Min Mat Mat Gar Mat Sto Gar Rec Fac Low Low Dat Pro Fac Fac Upp Upp Res Res Peak Influence 1225 | . 156 195 354 291 564 274 330 877 537 1225 . . . . 252 250 . . 214 509 Initial 1125 | . . 1 17 106 189 274 52 214 394 1125 . . . . 111 15 . . 138 120 Average 256 | . 51 77 168 171 420 123 210 507 471 1177 . . . . 152 110 . . 166 322 Maximum Alert Level 4 | . . . 1 1 2 1 1 3 2 4 . . . . 1 1 . . 1 2 Low Security (%) 56 | 100 100 100 63 62 10 86 35 . . . . . . . 83 75 . . 90 22 Level 1 23 | . . . 36 37 31 13 64 39 9 . . . . . 16 25 . . 9 41 Level 2 13 | . . . . . 57 . . 34 90 . . . . . . . . . . 36 Level 3 3 | . . . . . . . . 25 . . . . . . . . . . . . Level 4 3 | . . . . . . . . . . 100 . . . . . . . . . . Level 5 . | . . . . . . . . . . . . . . . . . . . . . High Security . | . . . . . . . . . . . . . . . . . . . . . Max Security . | . . . . . . . . . . . . . . . . . . . . . Squads Dispatched 11 | . . . 1 2 . . 2 . . 2 . . . . 2 . . . 1 1 Investigation 2 | . . . 1 . . . 1 . . . . . . . . . . . . . Extermination 1 | . . . . . . . . . . . . . . . 1 . . . . . Reinforcement 7 | . . . . 1 . . 1 . . 2 . . . . 1 . . . 1 1 Assault . | . . . . . . . . . . . . . . . . . . . . . Garrison 1 | . . . . 1 . . . . . . . . . . . . . . . . Intercept . | . . . . . . . . . . . . . . . . . . . . . Construction Impeded 2 | . . . . . . . . . . 1 . . . . 1 . . . . . Haulers Reinforced 1 | . . . . . . . . . . 1 . . . . . . . . . . Stealth | -11 -10 -10 -9 -8 -8 -8 -8 -8 -8 -6 -6 -6 -6 -5 -5 -4 -4 -4 -3 -2 --------- Run | Scr Mat Min Mat Mat Gar Mat Sto Gar Rec Fac Low Low Dat Pro Fac Fac Upp Upp Res Res Distress Signals 9 | . . . 2 . . . 3 . . 1 . . . . . 1 . . . 2 Communications Jammed 40 | . . . . . . . . . . 40 . . . . . . . . . . Distress Signals 40 | . . . . . . . . . . 40 . . . . . . . . . . Times Spotted 255 | . 8 16 17 12 18 17 22 22 5 9 12 8 . 9 13 20 10 . 8 29 Peak Tracking Total 10 | . 3 3 4 4 7 5 4 6 1 5 5 4 . 7 4 7 7 . 7 10 Tactical Retreats 39 | . . 1 1 1 1 2 1 8 . . 2 2 . 2 2 5 4 . . 7 Traps | -11 -10 -10 -9 -8 -8 -8 -8 -8 -8 -6 -6 -6 -6 -5 -5 -4 -4 -4 -3 -2 ------- Run | Scr Mat Min Mat Mat Gar Mat Sto Gar Rec Fac Low Low Dat Pro Fac Fac Upp Upp Res Res Traps Triggered 17 | . . . 1 . 4 . 2 5 . . . . . . 2 2 . . . 1 Indirectly . | . . . . . . . . . . . . . . . . . . . . . Trap Hack Attempts . | . . . . . . . . . . . . . . . . . . . . . Triggered . | . . . . . . . . . . . . . . . . . . . . . Disarmed . | . . . . . . . . . . . . . . . . . . . . . Reprogrammed . | . . . . . . . . . . . . . . . . . . . . . Reused . | . . . . . . . . . . . . . . . . . . . . . Traps Extracted . | . . . . . . . . . . . . . . . . . . . . . Installed . | . . . . . . . . . . . . . . . . . . . . . Triggered . | . . . . . . . . . . . . . . . . . . . . . Machines | -11 -10 -10 -9 -8 -8 -8 -8 -8 -8 -6 -6 -6 -6 -5 -5 -4 -4 -4 -3 -2 ---------- Run | Scr Mat Min Mat Mat Gar Mat Sto Gar Rec Fac Low Low Dat Pro Fac Fac Upp Upp Res Res Machines Disabled 10 | . . . 1 . 2 . . 4 3 . . . . . . . . . . . Max in Single Turn 1 | . . . 1 . 1 . . 1 . . . . . . . . . . . . Garrison Relay 4 | . . . . . 2 . . 2 . . . . . . . . . . . . Phase Generator 1 | . . . . . . . . 1 . . . . . . . . . . . . Machines Sabotaged . | . . . . . . . . . . . . . . . . . . . . . Garrisons Compromised . | . . . . . . . . . . . . . . . . . . . . . Overloaded Fab Kills . | . . . . . . . . . . . . . . . . . . . . . Fab Network Shutdowns . | . . . . . . . . . . . . . . . . . . . . . Hacking | -11 -10 -10 -9 -8 -8 -8 -8 -8 -8 -6 -6 -6 -6 -5 -5 -4 -4 -4 -3 -2 --------- Run | Scr Mat Min Mat Mat Gar Mat Sto Gar Rec Fac Low Low Dat Pro Fac Fac Upp Upp Res Res Machines Accessed 37 | . 4 1 3 2 . 4 6 . 1 1 . . 4 . 5 2 1 . 1 2 Terminals 26 | . 4 . 3 1 . 4 4 . 1 . . . . . 4 2 . . 1 2 Fabricators 2 | . . . . . . . . . . 1 . . . . 1 . . . . . Repair Stations 1 | . . . . . . . 1 . . . . . . . . . . . . . Recycling Units . | . . . . . . . . . . . . . . . . . . . . . Scanalyzers . | . . . . . . . . . . . . . . . . . . . . . Garrison Access 2 | . . . . 1 . . 1 . . . . . . . . . . . . . Total Hacks 98 | . 10 1 7 3 . 10 13 . 2 1 . . 24 . 18 5 1 . 1 2 Successful 70 | . 7 1 2 2 . 6 9 . . 1 . . 24 . 12 3 1 . 1 1 Failed 28 | . 3 . 5 1 . 4 4 . 2 . . . . . 6 2 . . . 1 Catastrophic 3 | . . . . . . . . . . . . . . . 2 . . . . 1 Database Lockouts . | . . . . . . . . . . . . . . . . . . . . . Manual 45 | . 7 . 6 2 . 8 4 . . . . . . . 13 4 . . . 1 Terminals 63 | . 10 . 7 2 . 10 8 . 2 . . . . . 16 5 . . 1 2 Fabricators 3 | . . . . . . . . . . 1 . . . . 2 . . . . . Repair Stations 4 | . . . . . . . 4 . . . . . . . . . . . . . Recycling Units . | . . . . . . . . . . . . . . . . . . . . . Scanalyzers . | . . . . . . . . . . . . . . . . . . . . . Garrison Access 2 | . . . . 1 . . 1 . . . . . . . . . . . . . Terminal Hacks 43 | . 3 1 1 . . 2 2 . . . . . 24 . 5 2 1 . 1 1 Record 11 | . . . . . . . . . . . . . 11 . . . . . . . Part Schematic 4 | . . . . . . . . . . . . . 4 . . . . . . . Robot Schematic 6 | . . . . . . . . . . . . . 6 . . . . . . . Robot Analysis 1 | . 1 . . . . . . . . . . . . . . . . . . . Prototype ID Bank 3 | . . . . . . . . . . . . . 3 . . . . . . . Open Door 3 | . . 1 . . . . 1 . . . . . . . . . 1 . . . Level Access Points 1 | . . . . . . . . . . . . . . . . . . . 1 . Branch Access Points 4 | . . . 1 . . 1 . . . . . . . . . 1 . . . 1 Terminal Index 1 | . . . . . . . . . . . . . . . 1 . . . . . Unreport Threat 1 | . . . . . . 1 . . . . . . . . . . . . . . Hauler Manifests 1 | . . . . . . . . . . . . . . . 1 . . . . . Zone Layout 7 | . 2 . . . . . 1 . . . . . . . 3 1 . . . . Fabricator Hacks 2 | . . . . . . . . . . 1 . . . . 1 . . . . . Load Schematic 1 | . . . . . . . . . . . . . . . 1 . . . . . Build 1 | . . . . . . . . . . 1 . . . . . . . . . . Repair Station Hacks 2 | . . . . . . . 2 . . . . . . . . . . . . . Scan Component 1 | . . . . . . . 1 . . . . . . . . . . . . . Repair 1 | . . . . . . . 1 . . . . . . . . . . . . . Recycling Unit Hacks . | . . . . . . . . . . . . . . . . . . . . . Scanalyzer . | . . . . . . . . . . . . . . . . . . . . . Garrison Access Hacks 2 | . . . . 1 . . 1 . . . . . . . . . . . . . Unlock Access 2 | . . . . 1 . . 1 . . . . . . . . . . . . . Unauthorized Hacks 21 | . 4 . 1 1 . 4 4 . . . . . . . 6 1 . . . . Terminals 21 | . 4 . 1 1 . 4 4 . . . . . . . 6 1 . . . . Track 2 | . . . . . . . 1 . . . . . . . 1 . . . . . Assimilate 2 | . . . . . . . . . . . . . . . 2 . . . . . Botnet 17 | . 4 . 1 1 . 4 3 . . . . . . . 3 1 . . . . Fabricators . | . . . . . . . . . . . . . . . . . . . . . Repair Stations . | . . . . . . . . . . . . . . . . . . . . . Recycling Units . | . . . . . . . . . . . . . . . . . . . . . Scanalyzers . | . . . . . . . . . . . . . . . . . . . . . Garrison Access . | . . . . . . . . . . . . . . . . . . . . . Data Cores Recovered . | . . . . . . . . . . . . . . . . . . . . . Used . | . . . . . . . . . . . . . . . . . . . . . Hacking Detections 20 | . 4 . 3 1 . 2 3 . 1 . . . . . 3 1 . . 1 1 Full Trace Events 1 | . . . . . . 1 . . . . . . . . . . . . . . Feedback Events . | . . . . . . . . . . . . . . . . . . . . . Feedback Blocked . | . . . . . . . . . . . . . . . . . . . . . Robot Schematics Acquired 6 | . . . . . . . . . . . . . 6 . . . . . . . Robots Built . | . . . . . . . . . . . . . . . . . . . . . Matter . | . . . . . . . . . . . . . . . . . . . . . Time . | . . . . . . . . . . . . . . . . . . . . . Total Robot Build Rating . | . . . . . . . . . . . . . . . . . . . . . Part Schematics Acquired 4 | . . . . . . . . . . . . . 4 . . . . . . . Parts Built 1 | . . . . . . . . . . 1 . . . . . . . . . . Matter 212 | . . . . . . . . . . 212 . . . . . . . . . . Time 106 | . . . . . . . . . . 106 . . . . . . . . . . Total Part Build Rating 6 | . . . . . . . . . . 6 . . . . . . . . . . Parts Repaired 1 | . . . . . . . 1 . . . . . . . . . . . . . Time 26 | . . . . . . . 26 . . . . . . . . . . . . . Parts Recycled . | . . . . . . . . . . . . . . . . . . . . . Recycled Matter . | . . . . . . . . . . . . . . . . . . . . . Retrieved Matter . | . . . . . . . . . . . . . . . . . . . . . Retrieved Components . | . . . . . . . . . . . . . . . . . . . . . Parts Scanalyzed . | . . . . . . . . . . . . . . . . . . . . . Part Schematics Acquired . | . . . . . . . . . . . . . . . . . . . . . Parts Damaged . | . . . . . . . . . . . . . . . . . . . . . Bothacking | -11 -10 -10 -9 -8 -8 -8 -8 -8 -8 -6 -6 -6 -6 -5 -5 -4 -4 -4 -3 -2 ------------ Run | Scr Mat Min Mat Mat Gar Mat Sto Gar Rec Fac Low Low Dat Pro Fac Fac Upp Upp Res Res Used RIF Installer 2 | . . . . . 1 . . 1 . . . . . . . . . . . . Signal Jammer 1 | . . . . . . . . 1 . . . . . . . . . . . . Robots Hacked . | . . . . . . . . . . . . . . . . . . . . . Non-combat . | . . . . . . . . . . . . . . . . . . . . . Combat . | . . . . . . . . . . . . . . . . . . . . . Robot Hacks Applied . | . . . . . . . . . . . . . . . . . . . . . Relay Couplers Released 19 | . . . . . 9 . . 10 . . . . . . . . . . . . Machine Destruction 19 | . . . . . 9 . . 10 . . . . . . . . . . . . Attached 2 | . . . . . . . 1 . . 1 . . . . . . . . . . Robots Rewired 3 | . . . . . . . . 3 . . . . . . . . . . . . Allies Hacked 1 | . . . . . . . . . . . . . . . 1 . . . . . Hacks Repelled . | . . . . . . . . . . . . . . . . . . . . . Allies | -11 -10 -10 -9 -8 -8 -8 -8 -8 -8 -6 -6 -6 -6 -5 -5 -4 -4 -4 -3 -2 -------- Run | Scr Mat Min Mat Mat Gar Mat Sto Gar Rec Fac Low Low Dat Pro Fac Fac Upp Upp Res Res Total Allies 10 | . . . . . . . 1 3 . . . . . 1 5 . . . . . Largest Group 3 | . . . . . . . 1 3 3 2 . . . 1 3 . . . . . Highest-Rated Group 99 | . . . . . . . 99 99 63 42 . . . 94 93 . . . . . Highest-Rated Ally 99 | . . . . . . . 99 99 21 21 . . . 94 31 . . . . . Total Orders . | . . . . . . . . . . . . . . . . . . . . . Ally Attacks 129 | . . . . . . . 19 22 38 17 . . . 14 19 . . . . . Total Damage 2692 | . . . . . . . 639 486 422 361 . . . 577 207 . . . . . Kills 31 | . . . . . . . 6 9 8 1 . . . 4 3 . . . . . Allies Corrupted . | . . . . . . . . . . . . . . . . . . . . . Allies Melted . | . . . . . . . . . . . . . . . . . . . . . Intel | -11 -10 -10 -9 -8 -8 -8 -8 -8 -8 -6 -6 -6 -6 -5 -5 -4 -4 -4 -3 -2 ------- Run | Scr Mat Min Mat Mat Gar Mat Sto Gar Rec Fac Low Low Dat Pro Fac Fac Upp Upp Res Res Robot Analysis Total 1 | . 1 . . . . . . . . . . . . . . . . . . . Derelict Logs Recovered 7 | . . 2 . . . . . . . . 2 1 . 1 . . 1 . . . Drone Launches . | . . . . . . . . . . . . . . . . . . . . . Drone Recoveries . | . . . . . . . . . . . . . . . . . . . . . Exploration | -11 -10 -10 -9 -8 -8 -8 -8 -8 -8 -6 -6 -6 -6 -5 -5 -4 -4 -4 -3 -2 ------------- Run | Scr Mat Min Mat Mat Gar Mat Sto Gar Rec Fac Low Low Dat Pro Fac Fac Upp Upp Res Res Turns Passed 10461 | 69 842 813 745 251 595 979 633 924 266 282 1524 1322 40 98 410 188 135 16 111 218 Spaces Moved 6168 | 37 450 396 321 93 238 423 227 370 148 103 649 508 80 192 550 353 333 40 220 437 Core 889 | 2 . . . . . . . . . . 2 18 80 192 207 . . . . 388 Treads 4005 | 35 450 396 321 93 238 423 227 370 148 103 647 490 . . 64 . . . . . Legs 22 | . . . . . . . . . . . . . . . 22 . . . . . Wheels . | . . . . . . . . . . . . . . . . . . . . . Hover . | . . . . . . . . . . . . . . . . . . . . . Flight 1252 | . . . . . . . . . . . . . . . 257 353 333 40 220 49 Fastest Speed 37 | 50 160 180 160 180 180 180 180 180 180 180 180 50 50 50 37 37 40 40 37 37 Average Speed 134 | 155 163 180 176 180 180 180 180 180 180 180 200 187 50 50 61 39 40 40 38 48 Slowest Speed 1750 | 160 180 180 180 180 200 180 180 200 180 180 1750 1650 50 50 160 40 40 40 40 50 Overloaded Moves . | . . . . . . . . . . . . . . . . . . . . . Propulsion Burnouts . | . . . . . . . . . . . . . . . . . . . . . Robots Hopped 15 | . . . . . . . . . . . . . . . 2 6 5 . 1 1 Cave-ins Triggered 1 | . . . . . . . . . . . . . . . . 1 . . . . Exploration Rate (%) 39 | 5 68 84 26 16 46 40 42 65 48 4 64 78 68 39 20 20 61 10 7 23 Regions Visited 20 Branch Regions 9 Pre-discovered Areas 2 | . . . . . . . . . . . . . 1 . . . 1 . . . Known Exits Taken 8 | . . . . 1 . 1 1 . . 1 . . . . . 1 1 1 1 . Unknown Exits Taken 10 | 1 1 1 1 . . . . . 1 . 1 1 1 1 1 . . . . . Scrap Searched 7 | . . 1 . . . . . . . . 2 2 . . . . 2 . . . Spaces Dug 15 | . 1 . . . . . . . . . . 3 . . . 9 . . 1 1 Terrain Destroyed 141 | . 1 . . . . . 4 75 . . 47 3 . . . 9 . . 1 1 Melee 14 | . . . . . . . . . . . . 3 . . . 9 . . 1 1 Projectile 2 | . 1 . . . . . . . . . 1 . . . . . . . . . AOE 125 | . . . . . . . 4 75 . . 46 . . . . . . . . . Terrain Rammed . | . . . . . . . . . . . . . . . . . . . . . Walls Destroyed . | . . . . . . . . . . . . . . . . . . . . . Machines Disabled . | . . . . . . . . . . . . . . . . . . . . . Actions | -11 -10 -10 -9 -8 -8 -8 -8 -8 -8 -6 -6 -6 -6 -5 -5 -4 -4 -4 -3 -2 --------- Run | Scr Mat Min Mat Mat Gar Mat Sto Gar Rec Fac Low Low Dat Pro Fac Fac Upp Upp Res Res Total 7628 | 46 517 440 412 153 333 535 402 568 149 151 801 834 79 192 604 371 328 39 234 440 Wait 671 | . 2 2 28 38 20 19 108 49 . 2 84 282 . . 31 . . . 6 . Move 6120 | 36 449 395 320 92 236 422 226 368 147 102 648 507 79 191 545 342 324 39 217 435 Hop 11 | . . . . . . . . . . . . . . . 2 4 3 . 1 1 Pick Up 112 | 4 21 2 9 4 13 15 14 10 1 8 3 3 . . 1 4 . . . . Fast Attach 45 | 6 1 . . 2 . . 2 4 . . 1 5 . 1 14 4 1 . 4 . Attach 69 | . 1 . 3 2 12 7 7 7 . 6 16 4 . . 2 1 . . . 1 Detach 2 | . . . . . . . 1 . . . . . . . . 1 . . . . Swap 42 | . 6 4 4 . 2 4 6 6 . 5 3 2 . . . . . . . . Drop 58 | . 11 5 2 3 1 9 10 11 1 3 1 . . . . 1 . . . . Fire 380 | . 26 32 45 12 41 57 28 41 . 25 45 20 . . 8 . . . . . Melee 31 | . . . . . . . . . . . . 9 . . 1 14 . . 6 1 Ram 4 | . . . . . . . . . . . . 2 . . . . . . . 2 Kick . | . . . . . . . . . . . . . . . . . . . . . Crush 3 | . . . 1 . . 2 . . . . . . . . . . . . . . Escape Stasis 18 | . . . . . 8 . . 10 . . . . . . . . . . . . Rewire 62 | . . . . . . . . 62 . . . . . . . . . . . . Trap . | . . . . . . . . . . . . . . . . . . . . . Miscellaneous . | . . . . . . . . . . . . . . . . . . . . . Route ------- -11/Scrapyard -10/Materials (discovered 3 exits: *Mat x2 / *Min) -10/Mines (discovered 2 exits: *Mat x2) -9/Materials (discovered 2 exits: *Mat / Min) -8/Materials -8/Garrison -8/Materials (discovered 2 exits: [*Fac] / *Sto) -8/Storage -8/Garrison -8/Recycling -6/Factory -6/Lower Caves -6/Lower Caves (discovered 2 exits: *Fac / *Dat) -6/Data Miner -5/Proximity Caves -5/Factory (discovered 3 exits: *Fac / Upp x2) -4/Factory (discovered 2 exits: *Upp x2) -4/Upper Caves -4/Upper Caves -3/Research (discovered 3 exits: *Res x3) -2/Research (discovered 2 exits: Qua x2) History --------- Turn | Location | Event 21 | -11/Scrapyard | Discovered new exit (range 15) 70 | -11/Scrapyard | Entered Materials 286 | -10/Materials | Discovered new exit (range 3) 306 | -10/Materials | Build established: Mutant 435 | -10/Materials | Discovered new exit (range 10) 652 | -10/Materials | Discovered new exit (range 14) 912 | -10/Materials | Entered Mines 1037 | -10/Mines | Received a Rocket Launcher from a helpful Derelict 1166 | -10/Mines | Learned location of 1 exit from Materials 1232 | -10/Mines | Learned 2 Materials zone layouts 1450 | -10/Mines | Discovered new exit (range 5) 1617 | -10/Mines | A weapon hastily lodged in a ceiling crevice suddenly fell to the ground 1672 | -10/Mines | Discovered new exit (range 8) 1694 | -10/Mines | Found the Drone Emporium 1701 | -10/Mines | Found Prototype Device 1725 | -10/Mines | Entered Materials 1725 | -9/Materials | Evolved 2 slots: Propulsion x1, Utility x1 1726 | -9/Materials | Identified exit to Mines 2114 | -9/Materials | Build established: Hauler-Mutant 2155 | -9/Materials | Discovered new exit (range 5) 2470 | -9/Materials | Entered another Materials area 2470 | -8/Materials | Evolved 2 slots: Utility x2 2671 | -8/Materials | Garrison activated, responded to threat 2719 | -8/Materials | Identified exit to Garrison 2721 | -8/Materials | Entered Garrison 2730 | -8/Garrison | Installed Relay Interface Framework 2777 | -8/Garrison | Triggered checkpoint 2874 | -8/Garrison | Lost 8 parts (1p3n1u3w) 2909 | -8/Garrison | Garrison Relay disabled 2960 | -8/Garrison | Triggered checkpoint 3051 | -8/Garrison | Triggered checkpoint 3117 | -8/Garrison | Lost 4 parts (3n1u) 3201 | -8/Garrison | Discovered new exit (range 10) 3316 | -8/Garrison | Entered Materials 3403 | -8/Materials | Build established: Scavenger-Mutant 3680 | -8/Materials | Discovered new exit (range 8) 3684 | -8/Materials | Identified exit to Storage 4129 | -8/Materials | Lost 5 parts (1p3n1w) 4295 | -8/Materials | Entered Storage 4327 | -8/Storage | Repaired Lgt. Treads 4450 | -8/Storage | Core integrity fell below 50% 4674 | -8/Storage | Met 01-MTF 4895 | -8/Storage | Identified Sensor Drone Bay 4926 | -8/Storage | Identified exit to Garrison 4928 | -8/Storage | Entered Garrison 4928 | -8/Garrison | Accompanied by 1 ally (01-MTF) 4933 | -8/Garrison | 01-MTF left 4937 | -8/Garrison | Expanded RIF knowledge: Signal Jamming 4990 | -8/Garrison | Triggered checkpoint 5027 | -8/Garrison | Garrison Relay disabled 5103 | -8/Garrison | Triggered checkpoint 5191 | -8/Garrison | Lost 8 parts (2p2n1u3w) 5296 | -8/Garrison | Phase Generator disabled 5389 | -8/Garrison | Spotted B-75 Beast 5430 | -8/Garrison | Build established: Hauler-Mutant 5662 | -8/Garrison | Triggered checkpoint 5738 | -8/Garrison | Triggered checkpoint 5787 | -8/Garrison | Build established: Scavenger-Mutant 5801 | -8/Garrison | Garrison Relay disabled 5837 | -8/Garrison | Discovered new exit (range 8) 5852 | -8/Garrison | Entered Recycling 5852 | -8/Recycling | Accompanied by 3 allies 5878 | -8/Recycling | Spotter reported a threat 5880 | -8/Recycling | Spotter reported a threat 5930 | -8/Recycling | Spotter reported a threat 5941 | -8/Recycling | Spotter reported a threat 5961 | -8/Recycling | Spotter reported a threat 6044 | -8/Recycling | Spotter reported a threat 6062 | -8/Recycling | Spotter reported a threat 6092 | -8/Recycling | Spotter reported a threat 6110 | -8/Recycling | Discovered new exit (range 5) 6118 | -8/Recycling | Entered Factory 6118 | -6/Factory | Accompanied by 2 allies 6118 | -6/Factory | Evolved 4 slots: Propulsion x1, Utility x3 6358 | -6/Factory | Discovered new exit (range 10) 6375 | -6/Factory | Fabricated Imp. Remote Datajack? 6380 | -6/Factory | Identified exit to Lower Caves 6400 | -6/Factory | Entered Lower Caves 6454 | -6/Lower Caves | Lost 7 parts (1p4n2u) 6780 | -6/Lower Caves | Build established: Hauler-Skirmisher 7065 | -6/Lower Caves | System corruption reached 10% 7095 | -6/Lower Caves | Lost 3 parts (2u1w) 7348 | -6/Lower Caves | Build established: Hauler-Mutant 7478 | -6/Lower Caves | Lost 10 parts (1p4n2u3w) 7599 | -6/Lower Caves | Learned Factory security intel 7615 | -6/Lower Caves | Encountered a Warlord checkpoint 7896 | -6/Lower Caves | Discovered new exit (range 9) 7924 | -6/Lower Caves | Entered another Lower Caves area 8028 | -6/Lower Caves | Discovered new exit (range 16) 8029 | -6/Lower Caves | Encountered a Warlord checkpoint 8483 | -6/Lower Caves | Spotted B-75 Beast 8628 | -6/Lower Caves | Lost 4 parts (1p1n2u) 9221 | -6/Lower Caves | Core integrity fell below 50% 9236 | -6/Lower Caves | Released all parts (10) 9243 | -6/Lower Caves | Discovered new exit (range 8) 9246 | -6/Lower Caves | Entered Data Miner 9246 | -6/Data Miner | Discovered new exit (range 6) 9256 | -6/Data Miner | Met Data Miner 9265 | -6/Data Miner | Lost 4 parts (3n1w) 9266 | -6/Data Miner | Learned location of Section 7 (-2) 9266 | -6/Data Miner | Acquired the access code to Warlord's prototype stash 9275 | -6/Data Miner | Received God Mode back door access code from Data Miner 9286 | -6/Data Miner | Entered Proximity Caves 9286 | -5/Proximity Caves | Spotted B-75 Beast 9289 | -5/Proximity Caves | Attracted the attention of an 0b10 checkpoint 9289 | -5/Proximity Caves | Core integrity fell below 20% 9304 | -5/Proximity Caves | Escorted by Enhanced Grunt 9380 | -5/Proximity Caves | Discovered new exit (range 7) 9384 | -5/Proximity Caves | Entered Factory 9384 | -5/Factory | Evolved 2 slots: Utility x2 9385 | -5/Factory | Identified exit to Upper Caves 9425 | -5/Factory | Allied Derelicts emerged from ambush trap array 9513 | -5/Factory | Build established: Mutant 9539 | -5/Factory | Lost 3 parts (1p1n1w) 9648 | -5/Factory | Released all parts (4) 9787 | -5/Factory | Discovered new exit (range 16) 9794 | -5/Factory | Entered another Factory area 9794 | -4/Factory | Evolved 2 slots: Power x1, Utility x1 9859 | -4/Factory | Spotted B-86 Titan 9920 | -4/Factory | Identified exit to Upper Caves 9951 | -4/Factory | Crushed by falling debris 9975 | -4/Factory | Build established: Hacker-Mutant 9982 | -4/Factory | Entered Upper Caves 10006 | -4/Upper Caves | Lost 3 parts (2n1u) 10023 | -4/Upper Caves | Learned location of Armory (-3) 10097 | -4/Upper Caves | Attracted the attention of an 0b10 outpost 10109 | -4/Upper Caves | Spotted B-86 Titan 10110 | -4/Upper Caves | Discovered new exit (range 17) 10116 | -4/Upper Caves | Identified exit to Upper Caves 10117 | -4/Upper Caves | Entered another Upper Caves area 10128 | -4/Upper Caves | Discovered new exit (range 13) 10133 | -4/Upper Caves | Identified exit to Research 10133 | -4/Upper Caves | Entered Research 10133 | -3/Research | Evolved 2 slots: Utility x2 10209 | -3/Research | Identified exit to Research 10244 | -3/Research | Entered another Research area 10244 | -2/Research | Evolved 2 slots: Propulsion x1, Utility x1 10255 | -2/Research | Identified exit to Quarantine 10266 | -2/Research | Released all parts (7) 10293 | -2/Research | Core integrity fell below 50% 10294 | -2/Research | Lost 3 parts (2p1u) 10345 | -2/Research | Spotted B-90 Cyclops 10414 | -2/Research | Core integrity fell below 20% 10462 | -2/Research | Destroyed by S-43 Plague with Heavy Machine Gun Last Messages --------------- 10266_ Released Adv. Signal Interpreter. 10266_ Released Lance. 10266_ Released Imp. System Shield. 10266_ Released Adv. Visual Processing Unit. 10266_ Released Biomechanical Wings. 10266_ Released Lgt. Antimatter Reactor. 10266_ Penetrated by Slug. 10266_ Slug penetrates Wall. 10272_ Slammed into S-43 Plague. 10364_ Detecting nearby Garrison Access. 10365_ K-01 Serf cleans the Garrison Access. 10388_ O-16 Technician: "IFF HANDSHAKE FAILED. SECURING TERMINAL." 10389_ O-16 Technician uses terminal to summon reinforcements. 10389_ ALERT: Hostiles spotted, dispatching reinforcements to Terminal R002. 10389_ O-16 Technician locks terminal. 10444_ Connecting with Terminal... 10453_ Triggered Blade Trap. 10453_ Massive razor-sharp blades shoot up from within the floor. 10460_ K-01 Serf destroyed. Map ----- +----------------------------------------------------+ | ????????"""" *??????????????????????????????????? | | ?????# """" #?????????????????????????????????? | | ?????# """" #?????????????????????????????????? | | ?????# """" #?????????????????????????????????? | | ?????# #?????????????????????????????????? | | ?????# #?????????????????????????????????? | | ??????####+###+#?????????????????????????????????? | | ????????# ###???????????????????????????????? | | ######### T#???????????????????????????????? | | ""#???????????????????????????????? | | ######## ###???????????????????????????????? | | ???????# #?????????????????????????????????? | | ???????# #?????????????????????????????????? | | ?####### #?????????????????????????????????? | | ##########????????????????????????? | | ??###### # #????????????????????????? | | ???????# + ! ! #????????????????????????? | | ???????# # #????????????????????????? | | ???????# # """ #????????????????????????? | | ???????# # """ #????????????????????????? | | ???????# # """ #????????????????????????? | | ???????#^ #? #????????????????????????? | | ???????# #?? #????????????????????????? | | ???????# #??? #????????????????????????? | | ???????# ########+##########???????????????? | | ???????# s s @ ss!= ????????? | | ???????# s s s!!= ????????? | | ???????###### ss != ????????? | | ????????????# % ?????????? | | ????????????####+########### ?????????? | | ?????????????? ????????? ??????????? | | ????????????# ???????? R ??????????? | | ????????????# [ #?????? R* ??????????? | | ????????????# ! #??????? ???????????? | | ????????????# #???????? ???????????? | | ????????????# "" #???????? ????????????? | | ????????????# S"" #????????? k!????????????? | | ????????????# "" #?????????? ??????????????? | | ????????????###########??????????????????????????? | | ?????????????????????????????????????????????????? | | ?????????????????????????????????????????????????? | | ?????????????????????????????????????????????????? | | ?????????????????????????????????????????????????? | | ?????????????????????????????????????????????????? | | ?????????????????????????????????????????????????? | | ?????????????????????????????????????????????????? | | ?????????????????????????????????????????????????? | | ?????????????????????????????????????????????????? | | ?????????????????????????????????????????????????? | | ?????????????????????????????????????????????????? | +----------------------------------------------------+ Best States ------------- Heat Dissipation 64 Energy Generation 39 Energy Capacity 265 Matter Stores 300 Matter Capacity 300 Sight Range 20 Robot Scan Range 16 Terrain Scan Range 16 Terrain Scan Density 10 Armor Coverage 225 Utility Shielding 66 Thermal Conversion 60 Evasion (%) 62 Recoil Reduction 4 Particle Charging 15 Offensive Hacking 14 Defensive Hacking 26 Relay Coupler Types 54 Relay Coupler Value 1 Item Schematics ----------------- Combat Drone Bay | -6/Data Miner | Free Lgt. Regenerative Plating | -6/Data Miner | Free Exp. Flexi-carbon Leg | -6/Data Miner | Free Exp. Targeting Computer | -6/Data Miner | Free Robot Schematics ------------------ S-27 Virus | -6/Data Miner | Free G-50 Soldier | -6/Data Miner | Free G-67 Veteran | -6/Data Miner | Free X-72 Disruptor | -6/Data Miner | Free I-36 Angel | -6/Data Miner | Free I-47 Archangel | -6/Data Miner | Free Fabricated ------------ Imp. Remote Datajack | x1 | -6/Factory | Preloaded Alien Tech Used ----------------- None Achievements -------------- None Challenges ------------ None Game ------ Seed LinearGammaBiocell Manual? 0 Play Time 01:21:05 Cumulative 135.9 hours Start 2021.06.19 @ 21:15:15 End 2021.06.19 @ 22:33:09 Sessions 1 Manual Loads 0 Difficulty Rogue Special Mode None Game No. 107 Rogue 107 Adventurer 0 Explorer 0 Win Type - Total 5 Types 5/0/0/0/0/0/0/0/0 Lore% 76 Gallery% 61 Achievement% 53 Wizard Run 0 Options --------- ASCII 0 Keyboard 1 Movement Arrows Keybinds 0 Fullscreen 1 Font 18/SmallcapsGlow Map View 76x50 Tactical HUD 1 Map Filters NONE Filters NONE Steam 1 RUN: 6ada492d-882e-4fec-be6d-1279b3cccf2b